bitfinex/quotes_ETHUSD_20250806
["timestamp","ask_amount","ask_price","bid_price","bid_amount"]
[1754458649444,1.157,3661.0,3660.4,2.31113338]
[1754458649645,100.0,3668.8,3661.3,0.09999999]
[1754458649646,0.4455,3661.5,3661.3,0.09999999]
[1754458649883,7.48575482,3663.3,3661.4,0.92011197]
[1754458650084,21.211205,3661.9,3661.5,0.09999999]
[1754458650245,21.211205,3661.9,3661.5,1.02001481]
[1754458650448,21.211205,3661.9,3661.5,0.09999999]
[1754458650449,1.157,3661.8,3661.5,0.09999999]
[1754458650768,0.1368,3661.6,3661.2,0.09999999]
[1754458650976,22.368205,3661.5,3661.4,0.09999999]
[1754458651156,1.157,3661.5,3661.4,0.09999999]
[1754458651357,1.55948682,3661.5,3661.4,0.09999999]
[1754458651573,1.157,3661.5,3661.4,0.09999999]
[1754458651757,1e-08,3662.0,3661.4,0.09999999]
[1754458651960,1e-08,3662.0,3661.7,0.09999999]
[1754458651961,0.1368,3661.9,3661.7,0.09999999]
[1754458652288,0.4455,3662.7,3662.4,0.09999999]
[1754458652486,0.4455,3662.7,3661.5,6.57416796]
[1754458652487,0.5823,3662.7,3662.1,0.23679999]
[1754458652688,21.922705,3662.6,3661.8,0.09999999]
[1754458652987,22.368205,3662.5,3662.0,0.09999999]
[1754458653173,21.348005,3662.4,3662.0,0.09999999]
[1754458653379,2.73066355,3662.2,3661.8,0.09999999]
[1754458653575,21.211205,3662.1,3662.0,0.09999999]
[1754458653901,21.348005,3662.0,3661.9,0.09999999]
[1754458654059,24.43780336,3662.0,3661.7,0.09999999]
[1754458654261,1.157,3661.9,3661.7,0.09999999]
[1754458654458,0.1368,3662.4,3662.0,0.09999999]
[1754458654666,21.656705,3662.3,3662.1,1.38016796]
[1754458654866,22.368205,3662.2,3662.0,0.09999999]
[1754458655091,21.211205,3662.1,3662.0,2.96747951]
[1754458655393,21.211205,3662.1,3662.0,0.09999999]
[1754458655625,22.368205,3662.1,3661.9,0.09999999]
[1754458655886,22.368205,3662.1,3661.7,1.84023575]
[1754458655887,22.368205,3662.0,3661.7,1.84023575]
[1754458656050,22.368205,3662.0,3661.3,5.86241107]
[1754458656051,1.157,3662.0,3661.9,0.09999999]
[1754458656454,3.88774822,3662.0,3661.7,0.09999999]
[1754458656655,25.09903739,3661.9,3661.7,0.09999999]
[1754458656879,21.211205,3661.8,3661.7,0.09999999]
[1754458657054,25.09910237,3661.8,3661.7,0.09999999]
[1754458657248,2.73104653,3661.6,3661.4,1.84023575]
[1754458657467,22.62221056,3661.5,3660.8,2.31113338]
[1754458657667,31.21681908,3661.4,3660.9,2.41113337]
[1754458657989,31.21681908,3661.4,3661.2,1.85940106]
[1754458657990,21.46521056,3661.3,3661.2,1.85940106]
[1754458658192,2.73149412,3661.0,3660.5,0.09999999]
[1754458658388,21.46606672,3660.9,3660.5,3.23558673]
[1754458658692,0.55,3662.3,3660.5,3.23558673]
[1754458658693,2.7317926,3660.6,3660.5,3.23558673]
[1754458658874,24.19785932,3660.6,3660.5,3.23558673]
[1754458659075,24.19785932,3660.6,3660.5,0.09999999]
[1754458659076,35.96606672,3660.6,3660.5,0.09999999]
[1754458659280,0.25486172,3660.6,3660.5,2.83186722]
[1754458659493,5.5985,3661.8,3661.5,2.73106126]
[1754458659707,6.558,3662.8,3661.5,2.73105121]
[1754458659708,37.12300238,3661.7,3661.5,2.73105121]
[1754458659905,37.12300238,3661.7,3660.9,1.86291383]
[1754458659906,0.25479738,3661.6,3660.9,1.86291383]
[1754458660083,0.25479738,3661.5,3660.8,1.86291383]
[1754458660403,5.175,3662.0,3660.8,4.59455718]
[1754458660614,0.25475734,3661.9,3661.0,2.73149412]
[1754458660925,5.17,3662.5,3661.1,0.02731419]
[1754458661069,2.73090288,3661.8,3660.6,1.86291383]
[1754458661274,21.211205,3661.7,3660.4,4.86291383]
[1754458661501,26.381205,3661.8,3661.2,2.73127402]
[1754458661680,22.62298933,3661.7,3660.4,1.86291383]
[1754458661893,2.73144491,3661.1,3660.3,2.732]
[1754458662093,5.169,3661.3,3660.8,2.73158025]
[1754458662317,0.25482089,3661.2,3660.8,2.73158025]
[1754458662609,22.62302154,3661.1,3660.9,1.86634811]
[1754458662813,22.62302154,3661.0,3660.9,1.86634811]
[1754458662975,1.41181654,3661.0,3660.9,1.86634811]
[1754458663170,22.62302154,3661.0,3660.8,1.86726521]
[1754458663489,27.78602154,3660.9,3660.2,2.32864229]
[1754458663709,30.51766489,3660.8,3660.7,1.86756877]
[1754458664005,2.73181546,3660.6,3660.1,2.36864229]
[1754458664207,22.62302154,3660.5,3660.2,2.32864229]
[1754458664408,6.316,3660.5,3660.2,2.32864229]
[1754458664594,0.25489026,3660.4,3660.1,0.04]
[1754458664801,0.6973,3660.9,3660.1,0.04]
[1754458665019,0.6973,3661.4,3661.1,2.73138137]
[1754458665319,0.25483649,3661.3,3661.2,2.73134491]
[1754458665469,0.1368,3661.8,3661.2,0.1368]
[1754458665674,0.25483136,3661.7,3661.4,2.7311863]
[1754458665870,0.4597,3662.3,3661.1,0.6957]
[1754458666191,0.25481688,3662.2,3661.2,3.10085161]
[1754458666385,0.25481688,3662.1,3662.0,2.86754822]
[1754458666587,0.25481688,3662.2,3662.1,2.73067365]
[1754458666940,0.8341,3663.2,3662.3,2.73052453]
[1754458667139,21.46596107,3662.8,3662.7,2.86702633]
[1754458667315,0.25475607,3662.8,3662.7,0.1368]
[1754458668148,0.001,3663.1,3662.8,2.73015179]
[1754458669706,0.001,3663.1,3662.8,8.55285179]
[1754458669905,0.001,3663.1,3662.8,2.73015179]
[1754458671309,0.001,3663.1,3662.8,7.84915179]
[1754458671713,0.001,3663.1,3662.8,8.54485179]
[1754458672259,0.001,3663.1,3662.8,8.53385179]
[1754458672554,1e-08,3662.9,3662.8,9.81120879]
[1754458672703,0.04,3663.9,3662.8,11.06535913]
[1754458672905,0.04,3663.9,3663.8,2.72940662]
[1754458673107,0.04,3663.9,3663.8,7.83740662]
[1754458673718,0.04,3663.9,3663.8,8.53310662]
[1754458673908,0.04,3663.9,3663.8,7.83140662]
[1754458674253,0.04,3663.9,3663.8,7.83040662]
[1754458674468,0.04,3663.9,3663.8,2.72940662]
[1754458674631,0.04,3663.9,3663.8,7.82940662]
[1754458675672,0.04,3663.9,3663.7,2.72945535]
[1754458675836,0.04,3663.9,3663.8,7.82240662]
[1754458676033,0.04,3663.9,3663.8,5.091]
[1754458676239,0.04,3663.9,3662.9,0.6957]
[1754458676462,0.04,3663.9,3662.8,0.819657]
[1754458676463,0.04,3663.9,3663.5,2.72962708]
[1754458676634,0.04,3663.9,3663.6,5.087]
[1754458676839,0.04,3663.9,3663.8,2.72940662]
[1754458677362,0.04,3663.9,3663.6,5.087]
[1754458677531,0.04,3663.9,3663.6,7.816539]
[1754458677732,1.197,3663.9,3663.4,2.7296308]
[1754458677932,1.157,3663.8,3663.1,5.085]
[1754458678239,22.368205,3663.7,3662.9,0.819676]
[1754458678438,0.39273941,3663.8,3662.7,0.6957]
[1754458678644,0.1768,3663.9,3663.4,0.1368]
[1754458678825,1.157,3663.8,3663.4,0.1368]
[1754458679031,22.368205,3663.7,3663.4,0.1368]
[1754458679265,0.1768,3663.9,3663.4,2.86645182]
[1754458679431,0.1768,3663.9,3663.5,2.72961847]
[1754458679626,0.1768,3663.9,3663.4,0.1368]
[1754458679826,25.09763912,3663.8,3662.2,0.6957]
[1754458680027,25.09763912,3663.8,3661.7,3.0]
[1754458680028,2.72972482,3663.4,3662.8,0.1368]
[1754458680347,0.1368,3663.5,3663.0,0.1368]
[1754458680673,0.1368,3663.5,3662.7,5.076]
[1754458680674,2.72986914,3663.2,3662.7,5.076]
[1754458680882,24.07794438,3663.1,3662.7,5.076]
[1754458681074,0.1368,3663.1,3662.4,2.73044997]
[1754458681242,0.1368,3663.1,3661.9,3.0]
[1754458681243,2.73013244,3662.9,3661.9,2.73081585]
[1754458681566,0.1368,3662.4,3661.9,0.956765]
[1754458681753,2.73059909,3662.2,3661.6,0.002]
[1754458681967,0.1368,3662.0,3661.6,0.002]
[1754458682166,21.211205,3661.9,3661.6,0.002]
[1754458682352,22.368205,3661.9,3661.6,0.002]
[1754458682669,22.505005,3661.8,3661.6,0.002]
[1754458682869,21.211205,3661.7,3661.6,0.002]
[1754458683030,22.368205,3661.7,3661.6,0.002]
[1754458683231,25.09917695,3661.7,3661.6,0.002]
[1754458683454,2.73119571,3661.4,3661.3,0.002]
[1754458683655,2.73134491,3661.2,3660.9,0.002]
[1754458683926,2.73171797,3660.7,3660.6,0.002]
[1754458684132,21.348005,3660.7,3660.6,0.002]
[1754458684333,22.505005,3660.7,3660.6,0.002]
[1754458684535,0.1368,3660.7,3660.6,0.002]
[1754458684740,1.2938,3660.7,3660.6,0.002]
[1754458684930,25.23672297,3660.7,3660.6,0.002]
[1754458685136,26.92326065,3660.7,3660.6,0.002]
[1754458685345,26.92326065,3660.7,3660.1,0.04]
[1754458685346,2.73209114,3660.2,3660.1,0.04]
[1754458685544,24.08009614,3660.2,3660.1,0.04]
[1754458685787,2.73231509,3659.9,3659.8,0.820447]
[1754458686104,21.211205,3659.9,3659.8,0.820447]
[1754458686305,0.1368,3659.9,3659.8,0.820447]
[1754458686800,22.505005,3659.9,3659.8,0.820447]
[1754458686988,0.1368,3659.9,3659.8,3.55283674]
[1754458687391,21.348005,3659.9,3659.8,0.820447]
[1754458687701,2.7324644,3659.7,3659.6,0.002]
[1754458688001,24.0804694,3659.7,3659.6,0.002]
[1754458688201,25.2374694,3659.7,3659.6,0.002]
[1754458689707,30.2704694,3659.7,3659.6,0.002]
[1754458690002,30.1336694,3659.7,3659.6,0.002]
[1754458690568,21.211205,3659.7,3659.6,0.002]
[1754458690904,21.211205,3660.0,3659.6,0.002]
[1754458691107,0.4597,3660.7,3659.6,0.002]
[1754458691108,1.157,3659.7,3659.6,0.002]
[1754458691273,25.7196694,3659.7,3659.6,0.002]
[1754458691473,4.5084644,3659.7,3659.6,0.002]
[1754458691701,4.5084644,3659.7,3659.3,1e-08]
[1754458691702,25.504205,3659.7,3659.3,1e-08]
[1754458691868,2.73268841,3659.4,3659.3,1e-08]
[1754458692283,2.73268841,3659.4,3658.1,0.04]
[1754458692284,2.73283777,3659.2,3658.1,0.04]
[1754458692504,2.73257147,3659.6,3658.1,0.04]
[1754458692505,2.73358482,3658.2,3658.1,0.04]
[1754458692717,23.727205,3658.2,3658.1,0.04]
[1754458692869,24.874205,3658.2,3658.1,0.04]
[1754458693200,21.211205,3658.2,3658.1,0.04]
[1754458693439,0.467,3658.7,3658.2,2.7335286]
[1754458693440,2.515,3658.4,3658.2,2.7335286]
[1754458693628,21.211205,3658.3,3658.2,2.7335286]
[1754458693824,21.211205,3658.2,3658.1,2.77363782]
[1754458694032,21.211205,3658.3,3658.1,2.77363782]
[1754458694244,1.147,3658.2,3658.1,0.04]
[1754458694420,21.891205,3658.2,3658.1,0.04]
[1754458694618,21.211205,3658.2,3658.1,2.77365955]
[1754458694931,21.211205,3658.6,3658.5,2.73336066]
[1754458695244,2.512,3658.9,3658.1,0.04]
[1754458695451,1.147,3660.3,3658.2,1.1336]
[1754458695604,24.868205,3660.2,3658.1,0.04]
[1754458695809,3.0,3660.0,3658.1,0.04]
[1754458696029,3.55,3659.8,3658.1,0.04]
[1754458696344,2.73327317,3658.7,3658.1,0.04]
[1754458696642,2.73354292,3658.3,3658.1,0.04]
[1754458696843,24.407205,3658.2,3658.1,0.04]
[1754458697066,27.60778982,3658.2,3658.1,0.042]
[1754458697222,21.211205,3658.2,3658.1,0.042]
[1754458697547,2.515,3658.2,3658.1,0.042]
[1754458698136,24.873205,3658.2,3658.1,0.042]
[1754458698362,25.124705,3658.2,3658.1,0.042]
[1754458698868,27.85828982,3658.2,3658.1,0.042]
[1754458700073,27.99508982,3658.2,3658.1,0.042]
[1754458700765,25.48008982,3658.2,3658.1,0.042]
[1754458700986,27.98508982,3658.2,3658.1,0.042]
[1754458701949,26.70128982,3658.2,3658.1,0.042]
[1754458702189,27.16828982,3658.2,3658.1,0.042]
[1754458702492,27.16828982,3658.2,3657.1,0.04]
[1754458702493,2.73433227,3657.2,3657.1,0.04]
[1754458702645,26.44853727,3657.2,3657.1,0.04]
[1754458702865,27.59553727,3657.2,3657.1,0.04]
[1754458703263,21.211205,3657.2,3657.1,0.04]
[1754458703587,2.5,3657.2,3657.1,0.04]
[1754458703887,3.647,3657.2,3657.1,0.04]
[1754458704092,21.211205,3657.3,3657.2,2.73433227]
[1754458704291,21.211205,3657.6,3657.5,2.73410799]
[1754458704465,2.501,3657.6,3657.5,2.73410799]
[1754458704885,2.501,3657.6,3657.4,2.73416088]
[1754458705600,21.211205,3657.4,3657.1,0.04]
[1754458705899,2.497,3658.0,3657.9,2.73380901]
[1754458706067,0.68,3659.1,3658.0,2.73368896]
[1754458706270,23.710205,3658.8,3657.9,3.86739508]
[1754458706454,21.211205,3658.7,3657.9,1.1336]
[1754458706786,0.68,3659.5,3658.6,2.73328595]
[1754458706787,21.211205,3659.2,3658.6,2.73328595]
[1754458706988,21.211205,3659.3,3658.6,2.73326201]
[1754458707162,2.897,3661.4,3658.5,0.7038]
[1754458707163,2.497,3659.2,3658.5,0.7038]
[1754458707365,2.497,3659.1,3658.6,2.73328595]
[1754458707680,2.497,3659.3,3658.7,1.1336]
[1754458707992,21.211205,3659.2,3658.4,2.73341529]
[1754458708293,2.73292076,3659.1,3658.3,3.43730004]
[1754458708505,21.211205,3659.0,3658.3,0.7038]
[1754458708701,21.211205,3659.2,3658.7,2.73314434]
[1754458708862,21.211205,3659.2,3658.7,2.73317741]
[1754458709066,21.211205,3659.2,3658.4,2.73343048]
[1754458709381,21.211205,3659.2,3658.5,2.73336066]
[1754458709589,21.211205,3659.2,3658.7,2.73315303]
[1754458709789,2.73199333,3660.4,3657.8,2.73385067]
[1754458709790,0.68,3660.1,3658.8,1.1336]
[1754458709991,23.699205,3659.8,3659.3,2.73269643]
[1754458710198,0.04,3660.9,3659.4,1.1336]
[1754458710374,2.488,3660.3,3659.8,2.73238974]
[1754458711104,0.04,3660.9,3659.8,2.73238974]
[1754458711105,2.488,3660.5,3659.8,3.86598974]
[1754458711316,2.488,3660.5,3659.8,4.52583759]
[1754458711607,0.04,3660.9,3659.8,4.55316148]
[1754458711905,0.04,3660.9,3660.8,2.73164335]
[1754458712065,21.251205,3660.9,3660.8,2.73164335]
[1754458712265,21.388005,3660.9,3660.8,2.73164335]
[1754458712803,21.388005,3660.9,3660.6,0.1368]
[1754458712804,0.04,3660.9,3660.6,0.1368]
[1754458713002,0.04,3660.9,3660.5,2.73181124]
[1754458713204,0.04,3660.9,3659.7,0.7038]
[1754458713395,0.04,3660.9,3659.7,2.73242728]
[1754458713396,25.08985083,3660.8,3659.7,2.73242728]
[1754458713594,21.891205,3660.7,3659.1,0.4298]
[1754458713769,21.891205,3660.7,3658.7,2.482]
[1754458713770,23.693205,3660.6,3658.7,0.7038]
[1754458713965,0.1368,3659.3,3658.8,2.86991317]
[1754458714184,0.1368,3659.3,3659.2,2.73283777]
[1754458714399,0.1368,3659.3,3658.8,0.8406]
[1754458714605,0.1368,3659.5,3659.2,2.73283777]
[1754458714906,0.1368,3659.5,3658.9,0.7038]
[1754458714907,0.1368,3659.3,3658.9,2.73304584]
[1754458715112,0.1368,3659.3,3658.8,0.1368]
[1754458715278,0.1368,3659.0,3658.5,2.87009679]
[1754458715604,0.1368,3659.0,3658.1,0.04]
[1754458715605,21.211205,3658.9,3658.2,2.7335118]
[1754458715932,21.211205,3658.9,3658.1,0.04]
[1754458715933,0.1368,3658.4,3658.1,0.04]
[1754458716135,22.358205,3658.3,3658.1,0.04]
[1754458716306,1.72074272,3658.9,3658.1,2.77359635]
[1754458716307,2.40074272,3658.9,3658.1,2.77359635]
[1754458716627,0.1368,3658.4,3658.2,0.24304378]
[1754458716829,0.1368,3658.4,3658.3,0.24304378]
[1754458717027,0.1368,3658.4,3658.3,2.97655388]
[1754458717195,0.1368,3658.7,3658.5,2.7333571]
[1754458717393,0.1368,3658.7,3658.6,0.24304378]
[1754458717821,2.473,3659.2,3658.6,0.24304378]
[1754458718020,3.4124484,3659.8,3658.8,2.73313654]
[1754458718334,0.1368,3659.3,3659.2,2.73283777]
[1754458718543,0.1368,3659.3,3659.2,0.48604235]
[1754458718717,0.1368,3659.3,3659.2,0.48604272]
[1754458719523,21.348005,3659.3,3659.2,0.24301755]
[1754458719695,21.348005,3659.3,3659.0,2.73292726]
[1754458719999,21.211205,3659.2,3659.1,0.48604516]
[1754458720196,0.68,3659.8,3659.1,0.48604516]
[1754458720197,0.68,3660.3,3659.6,2.7325097]
[1754458720401,0.1368,3659.9,3659.7,0.24290281]
[1754458720697,21.211205,3659.7,3659.4,0.1368]
[1754458720904,2.7328905,3659.2,3658.2,0.1368]
[1754458721102,0.1368,3658.8,3658.3,0.63192417]
[1754458721350,0.1368,3658.8,3658.4,0.48609552]
[1754458721639,0.68,3659.2,3658.5,0.24312416]
[1754458721640,22.358205,3658.7,3658.5,0.24312416]
[1754458721938,21.348005,3658.6,3658.1,0.042]
[1754458722237,6.0525965,3660.9,3658.1,0.042]
[1754458722238,0.1368,3659.3,3659.0,2.73292496]
[1754458722547,0.1368,3659.3,3659.1,0.48624973]
[1754458722740,2.73276309,3659.3,3659.2,0.48624973]
[1754458722904,0.1368,3658.8,3658.3,2.73349395]
[1754458723102,21.211205,3658.7,3658.4,0.48618801]
[1754458723417,0.1368,3658.3,3658.2,0.002]
[1754458723617,0.1368,3658.3,3658.2,0.4883877]
[1754458724558,5.19735132,3658.6,3658.2,0.4883877]
[1754458724734,21.211205,3658.5,3658.3,0.24319385]
[1754458724930,21.211205,3658.5,3658.2,0.002]
[1754458725131,2.464,3658.6,3658.3,0.24320713]
[1754458725451,2.464,3658.6,3658.2,2.73556345]
[1754458725627,2.464,3658.6,3658.3,0.38912613]
[1754458725823,2.464,3658.6,3658.4,0.1459223]
[1754458726163,2.464,3658.6,3658.5,0.1459223]
[1754458727022,27.53739095,3658.6,3658.2,0.002]
[1754458727239,22.340105,3658.5,3658.2,0.002]
[1754458727432,21.211205,3658.4,3658.2,0.002]
[1754458727670,21.658305,3658.4,3658.2,0.002]
[1754458727871,2.73339217,3658.5,3658.2,0.002]
[1754458727872,25.0736151,3658.3,3658.2,0.002]
[1754458728775,3.28358482,3658.2,3658.1,1e-08]
[1754458728972,31.07668982,3658.2,3658.1,1e-08]
[1754458729170,31.07668982,3658.2,3657.7,1e-08]
[1754458729171,3.28388375,3657.8,3657.7,1e-08]
[1754458729380,29.94808875,3657.8,3657.7,1e-08]
[1754458729543,31.07698875,3657.8,3657.7,1e-08]
[1754458730271,27.52598875,3657.8,3657.7,1e-08]
[1754458730471,25.07398875,3657.8,3657.7,1e-08]
[1754458730672,27.52498875,3657.8,3657.7,1e-08]
[1754458730897,21.211205,3657.8,3657.7,1e-08]
[1754458731076,2.451,3657.8,3657.7,1e-08]
[1754458731268,23.662205,3657.8,3657.7,1e-08]
[1754458731666,24.791105,3657.8,3657.7,1e-08]
[1754458731851,27.52498875,3657.8,3657.7,1e-08]
[1754458732054,2.45,3657.8,3657.7,1e-08]
[1754458732257,0.6818,3658.7,3657.7,1e-08]
[1754458732476,26.39350814,3658.6,3657.8,2.73387066]
[1754458732788,23.660205,3658.5,3658.0,2.73372632]
[1754458732946,21.211205,3658.4,3657.7,0.73150001]
[1754458733148,21.211205,3658.4,3657.8,2.73388375]
[1754458733388,2.73388375,3657.8,3657.7,1e-08]
[1754458733677,23.657205,3657.8,3657.7,1e-08]
[1754458733843,24.339005,3657.8,3657.7,1e-08]
[1754458734050,27.51998875,3657.8,3657.7,1e-08]
[1754458734276,23.657205,3657.8,3657.7,1e-08]
[1754458734593,23.794005,3657.8,3657.7,1e-08]
[1754458734809,26.52788875,3657.8,3657.7,1e-08]
[1754458734965,23.794005,3657.8,3657.7,1e-08]
[1754458735159,26.52788875,3657.8,3657.7,1e-08]
[1754458735357,23.794005,3657.8,3657.7,1e-08]
[1754458735611,27.20968875,3657.8,3657.7,1e-08]
[1754458735924,27.65678875,3657.8,3657.7,1e-08]
[1754458736118,27.20968875,3657.8,3657.7,1e-08]
[1754458736410,26.52788875,3657.8,3657.7,1e-08]
[1754458736555,27.65678875,3657.8,3657.7,1e-08]
[1754458736970,28.20678875,3657.8,3657.7,1e-08]
[1754458737985,31.20678875,3657.8,3657.7,1e-08]
[1754458740664,25.07398875,3657.8,3657.7,1e-08]
[1754458740861,27.63878875,3657.8,3657.7,1e-08]
[1754458741299,21.348005,3657.8,3657.7,1e-08]
[1754458741561,27.63878875,3657.8,3657.7,1e-08]
[1754458741762,28.18878875,3657.8,3657.7,1e-08]
[1754458741993,31.18878875,3657.8,3657.7,1e-08]
[1754458742244,31.18778875,3657.8,3657.7,1e-08]
[1754458742389,25.21078875,3657.8,3657.7,1e-08]
[1754458742569,27.19068875,3657.8,3657.7,1e-08]
[1754458742761,26.50788875,3657.8,3657.7,1e-08]
[1754458743108,27.63678875,3657.8,3657.7,1e-08]
[1754458743318,31.18678875,3657.8,3657.7,1e-08]
[1754458743901,6.28395849,3657.7,3657.6,1e-08]
[1754458744195,3.41575849,3657.7,3657.6,1e-08]
[1754458744416,23.772005,3657.7,3657.6,1e-08]
[1754458744568,26.50596349,3657.7,3657.6,1e-08]
[1754458744763,27.63486349,3657.7,3657.6,1e-08]
[1754458744967,31.04806349,3657.7,3657.6,1e-08]
[1754458745168,7.54965849,3657.7,3657.6,1e-08]
[1754458745391,2.73395849,3657.7,3657.6,1e-08]
[1754458745666,27.49806349,3657.7,3657.6,1e-08]
[1754458745871,24.62696349,3657.7,3657.6,1e-08]
[1754458746102,27.49706349,3657.7,3657.6,1e-08]
[1754458746301,41.99706349,3657.7,3657.6,1e-08]
[1754458746510,38.44516349,3657.7,3657.6,1e-08]
[1754458746751,43.12406349,3657.7,3657.6,1e-08]
[1754458746950,44.99606349,3657.7,3657.6,1e-08]
[1754458747239,40.86816349,3657.7,3657.6,1e-08]
[1754458747445,41.99706349,3657.7,3657.6,1e-08]
[1754458748054,45.54706349,3657.7,3657.6,1e-08]
[1754458748218,24.33585849,3657.7,3657.6,1e-08]
[1754458748404,45.54706349,3657.7,3657.6,1e-08]
[1754458749025,6.28440704,3657.1,3657.0,1e-08]
[1754458749245,27.49561204,3657.1,3657.0,1e-08]
[1754458749526,31.04351204,3657.1,3657.0,1e-08]
[1754458749764,24.62741204,3657.1,3657.0,1e-08]
[1754458749949,26.36361204,3657.1,3657.0,1e-08]
[1754458750542,35.711205,3657.1,3657.0,1e-08]
[1754458750738,40.86261204,3657.1,3657.0,1e-08]
[1754458750945,41.99151204,3657.1,3657.0,1e-08]
[1754458751160,38.44561204,3657.1,3657.0,1e-08]
[1754458751339,40.85961204,3657.1,3657.0,1e-08]
[1754458751544,45.53851204,3657.1,3657.0,1e-08]
[1754458754208,3.28448181,3657.0,3656.9,1e-08]
[1754458754505,25.66348681,3657.0,3656.9,1e-08]
[1754458754652,24.96258681,3657.0,3656.9,1e-08]
[1754458754967,25.66348681,3657.0,3656.9,1e-08]
[1754458755618,40.16348681,3657.0,3656.9,1e-08]
[1754458755757,40.30028681,3657.0,3656.9,1e-08]
[1754458756083,38.58248681,3657.0,3656.9,1e-08]
[1754458756282,38.44568681,3657.0,3656.9,1e-08]
[1754458756608,40.84968681,3657.0,3656.9,1e-08]
[1754458756892,38.124205,3657.0,3656.9,1e-08]
[1754458757091,38.124205,3657.0,3656.9,0.69640001]
[1754458757292,38.123205,3657.0,3656.9,0.69640001]
[1754458757498,40.85668681,3657.0,3656.9,1e-08]
[1754458758263,35.711205,3657.0,3656.9,0.69640001]
[1754458758466,21.211205,3657.0,3656.9,1.16780001]
[1754458758676,2.409,3657.0,3656.9,1e-08]
[1754458758867,23.620205,3657.0,3656.9,0.69640001]
[1754458759285,21.211205,3657.0,3656.9,1e-08]
[1754458759489,40.85368681,3657.0,3656.9,1e-08]
[1754458760386,42.02148681,3657.0,3656.9,1e-08]
[1754458760612,35.711205,3657.0,3656.9,1e-08]
[1754458760770,35.711205,3657.0,3656.9,1.16780001]
[1754458761136,16.905,3657.0,3656.9,1.16780001]
[1754458761459,14.5,3657.0,3656.9,1e-08]
[1754458761659,16.905,3657.0,3656.9,1e-08]
[1754458761884,16.905,3657.0,3656.9,1.16780001]
[1754458762121,40.85068681,3657.0,3656.9,1e-08]
[1754458762781,38.44568681,3657.0,3656.9,1e-08]
[1754458762988,40.84868681,3657.0,3656.9,1e-08]
[1754458763502,42.01648681,3657.0,3656.9,1e-08]
[1754458764500,45.01648681,3657.0,3656.9,1e-08]
[1754458766286,45.15328681,3657.0,3656.9,1e-08]
[1754458767321,45.70328681,3657.0,3656.9,1e-08]
[1754458767528,43.30028681,3657.0,3656.9,1e-08]
[1754458767688,43.98048681,3657.0,3656.9,1e-08]
[1754458768097,45.14828681,3657.0,3656.9,1e-08]
[1754458769401,45.69828681,3657.0,3656.9,1e-08]
[1754458771428,3.28508013,3656.2,3656.1,0.042]
[1754458771587,27.35059314,3656.2,3656.1,0.042]
[1754458771792,28.51839314,3656.2,3656.1,0.042]
[1754458772014,43.01839314,3656.2,3656.1,0.042]
[1754458772415,42.55149314,3656.2,3656.1,0.042]
[1754458772728,43.01839314,3656.2,3656.1,0.042]
[1754458773223,40.97108513,3656.2,3656.1,0.042]
[1754458773986,35.848005,3656.2,3656.1,0.7384]
[1754458774210,35.848005,3656.2,3656.1,1.2098]
[1754458774415,38.235005,3656.2,3656.1,1.2098]
[1754458774999,38.233005,3656.2,3656.1,1.2098]
[1754458775185,23.733005,3656.2,3656.1,1.2098]
[1754458775617,26.46808513,3656.2,3656.1,1.2098]
[1754458775932,40.96808513,3656.2,3656.1,0.042]
[1754458776402,38.231005,3656.2,3656.1,1.2098]
[1754458776599,21.348005,3656.2,3656.1,1.2098]
[1754458776829,0.001,3657.8,3656.2,2.73507197]
[1754458777031,0.1368,3657.2,3656.4,2.73493053]
[1754458777203,0.001,3657.8,3656.2,0.4083672]
[1754458777204,0.1368,3657.0,3656.5,1.3046]
[1754458777407,23.594205,3656.9,3656.1,0.1788]
[1754458777736,2.734324,3657.3,3656.1,0.1788]
[1754458777737,2.73508013,3656.2,3656.1,0.042]
[1754458777888,26.88028513,3656.2,3656.1,0.042]
[1754458778093,38.58308513,3656.2,3656.1,0.042]
[1754458778390,14.6368,3656.2,3656.1,0.7384]
[1754458778627,17.0208,3656.2,3656.1,1.2098]
[1754458778930,16.884,3656.2,3656.1,3.94495494]
[1754458779132,2.384,3656.2,3656.1,1.2098]
[1754458779318,0.1368,3656.3,3656.2,2.73508013]
[1754458779504,0.1368,3656.3,3656.2,3.90288013]
[1754458779705,14.5,3657.7,3657.4,2.73412808]
[1754458779915,14.5,3657.7,3657.5,1.1678]
[1754458779916,23.594205,3657.6,3657.5,1.1678]
[1754458780363,2.383,3657.6,3657.5,1.1678]
[1754458780558,23.594205,3657.6,3657.5,1.1678]
[1754458780712,21.211205,3657.6,3657.5,0.6964]
[1754458780907,23.593205,3657.6,3657.5,0.6964]
[1754458781108,21.211205,3657.6,3657.5,3.90190799]
[1754458781418,23.591205,3657.6,3657.5,3.90190799]
[1754458781624,23.591205,3657.6,3657.5,4.56552411]
[1754458781914,23.591205,3657.6,3657.5,1.1678]
[1754458782116,23.591205,3657.6,3657.2,2.73427707]
[1754458782319,21.211205,3657.5,3657.3,3.43064698]
[1754458782552,2.378,3657.4,3657.3,0.6964]
[1754458782720,0.001,3657.8,3657.7,2.73395849]
[1754458783243,0.001,3658.1,3657.7,2.73395849]
[1754458783244,0.001,3658.1,3658.0,2.73373428]
[1754458783612,0.001,3658.1,3658.0,3.82113428]
[1754458785150,1e-08,3658.1,3658.0,3.82113428]
[1754458785908,0.041,3658.9,3658.8,2.73313654]
[1754458786146,0.041,3658.9,3658.8,3.82053654]
[1754458786442,0.041,3658.9,3658.8,4.47591374]
[1754458787210,1e-08,3658.9,3658.8,4.47591374]
[1754458787407,1e-08,3658.9,3658.8,4.5032451]
[1754458787613,1e-08,3658.9,3658.8,4.47591374]
[1754458788614,1e-08,3659.9,3659.8,2.73238974]
[1754458788946,1e-08,3659.9,3658.9,1.0874]